[Event "44th Chess Olympiad Open 2022"]
[Site "Chennai"]
[Date "2022.07.31"]
[Round "3.86"]
[White "Christopher, Art"]
[Black "Kovacova, Zuzana"]
[Result "0-1"]
[WhiteElo "1616"]
[BlackElo "2050"]
[Annotator "NA RC"]
[PlyCount "100"]
[EventDate "2022.??.??"]
[TimeControl "60"]

1. e4 {[%emt 0:00:06]} e5 {[%emt 0:00:04]} 2. d4 {[%emt 0:00:37]} exd4 {
[%emt 0:00:30]} 3. Qxd4 {[%emt 0:00:19]} Nc6 {[%emt 0:00:57]} 4. Qe3 {[%emt 0:
00:00]} d6 {[%emt 0:01:57]} 5. Nc3 {[%emt 0:02:22]} g6 {[%emt 0:03:41]} 6. Bd2
{[%emt 0:01:56]} Bg7 {[%emt 0:00:38]} 7. O-O-O {[%emt 0:01:47]} Nf6 {[%emt 0:
00:00]} 8. f4 {[%emt 0:05:25]} Ng4 {[%emt 0:14:16]} 9. Qg3 {[%emt 0:03:47]} Bd4
{[%emt 0:07:28]} 10. Nh3 {[%emt 0:05:24]} h5 {[%emt 0:08:45]} 11. f5 {[%emt 0:
00:00]} Bf6 {[%emt 0:04:35]} 12. fxg6 {[%emt 0:20:42]} fxg6 {[%emt 0:00:48]}
13. Nd5 {[%emt 0:03:34]} Nce5 {[%emt 0:13:20]} 14. Kb1 {[%emt 0:05:03]} Be6 {
[%emt 0:07:42]} 15. Nhf4 {[%emt 0:03:26]} Bf7 {[%emt 0:03:40]} 16. h3 {[%emt 0:
00:00]} Bh4 {[%emt 0:04:00]} 17. Qc3 {[%emt 0:00:38]} Nf2 {[%emt 0:00:36]} 18.
Nxc7+ {[%emt 0:07:05]} Ke7 {[%emt 0:02:20]} 19. Nxa8 {[%emt 0:02:03]} Nxd1 {
[%emt 0:00:33]} 20. Qc7+ {[%emt 0:00:36]} Qxc7 {[%emt 0:01:18]} 21. Nxc7 {
[%emt 0:00:10]} Nf2 {[%emt 0:00:26]} 22. Rg1 {[%emt 0:02:20]} Nxe4 {[%emt 0:00:
00]} 23. Be3 {[%emt 0:00:51]} a6 {[%emt 0:07:07]} 24. Bd3 {[%emt 0:00:27]} Nxd3
{[%emt 0:00:26]} 25. cxd3 {[%emt 0:00:53]} Nc5 {[%emt 0:00:45]} 26. g3 {
[%emt 0:01:03]} Kd7 {[%emt 0:02:04]} 27. gxh4 {[%emt 0:01:09]} Kxc7 {[%emt 0:
00:00]} 28. d4 {[%emt 0:01:12]} Ne6 {[%emt 0:01:48]} 29. Nxg6 {[%emt 0:00:21]}
Rg8 {[%emt 0:00:11]} 30. Nf4 {[%emt 0:00:37]} Rxg1+ {[%emt 0:00:09]} 31. Bxg1 {
[%emt 0:00:17]} Nxf4 {[%emt 0:00:04]} 32. Kc2 {[%emt 0:02:02]} Kc6 {[%emt 0:00:
00]} 33. Be3 {[%emt 0:00:49]} Nxh3 {[%emt 0:00:18]} 34. a3 {[%emt 0:00:36]} Kd5
{[%emt 0:00:06]} 35. Kc3 {[%emt 0:01:53]} Ke4 {[%emt 0:00:23]} 36. Bh6 {
[%emt 0:01:07]} Nf4 {[%emt 0:00:24]} 37. Kd2 {[%emt 0:01:23]} Ne6 {[%emt 0:00:
00]} 38. Kc3 {[%emt 0:01:13]} Nxd4 {[%emt 0:00:25]} 39. Bf8 {[%emt 0:01:00]}
Nf5 {[%emt 0:00:50]} 40. Kb4 {[%emt 0:00:19]} b6 {[%emt 0:01:20]} 41. Kc3 {
[%emt 0:30:14]} d5 {[%emt 0:30:34]} 42. Kd2 {[%emt 0:00:25]} d4 {[%emt 0:00:16]
} 43. Ke2 {[%emt 0:00:39]} Bb3 {[%emt 0:00:11]} 44. Bb4 {[%emt 0:00:32]} Nxh4 {
[%emt 0:00:14]} 45. Bd2 {[%emt 0:00:13]} Nf3 {[%emt 0:00:11]} 46. Bb4 {[%emt 0:
00:00]} d3+ {[%emt 0:00:06]} 47. Kf2 {[%emt 0:00:21]} d2 {[%emt 0:00:04]} 48.
Bxd2 {[%emt 0:00:05]} Nxd2 {[%emt 0:00:04]} 49. Kg3 {[%emt 0:00:32]} Nc4 {
[%emt 0:00:08]} 50. Kh4 {[%emt 0:00:27]} Bd1 {[%emt 0:00:08]} 0-1

[Event "44th Chess Olympiad Open 2022"]
[Site "Chennai"]
[Date "2022.07.31"]
[Round "3.87"]
[White "Kamara, Ansumana"]
[Black "Senglek, Khonsavanh"]
[Result "1/2-1/2"]
[WhiteElo "1896"]
[BlackElo "1253"]
[Annotator "NA"]
[PlyCount "172"]
[EventDate "2022.??.??"]
[TimeControl "60"]

1. e4 {[%emt 0:00:04]} e6 {[%emt 0:00:09]} 2. d4 {[%emt 0:00:11]} d5 {[%emt 0:
00:00]} 3. Nc3 {[%emt 0:00:09]} c5 {[%emt 0:00:45]} 4. exd5 {[%emt 0:00:37]}
exd5 {[%emt 0:00:19]} 5. dxc5 {[%emt 0:01:11]} d4 {[%emt 0:00:25]} 6. Bb5+ {
[%emt 0:00:58]} Nc6 {[%emt 0:00:24]} 7. Qe2+ {[%emt 0:00:45]} Be6 {[%emt 0:00:
00]} 8. Ne4 {[%emt 0:01:17]} a6 {[%emt 0:04:57]} 9. Bxc6+ {[%emt 0:00:24]} bxc6
{[%emt 0:00:18]} 10. Nf3 {[%emt 0:00:12]} Qd5 {[%emt 0:00:33]} 11. O-O {
[%emt 0:01:16]} Bxc5 {[%emt 0:01:11]} 12. Nxc5 {[%emt 0:00:44]} Qxc5 {[%emt 0:
00:00]} 13. Rd1 {[%emt 0:00:41]} Ne7 {[%emt 0:02:05]} 14. Nxd4 {[%emt 0:00:47]}
Bc4 {[%emt 0:02:03]} 15. Qe1 {[%emt 0:00:33]} O-O {[%emt 0:00:30]} 16. Be3 {
[%emt 0:00:07]} Qe5 {[%emt 0:02:22]} 17. Nf3 {[%emt 0:02:00]} Qb5 {[%emt 0:00:
00]} 18. b3 {[%emt 0:00:28]} Be6 {[%emt 0:00:52]} 19. c4 {[%emt 0:00:39]} Qh5 {
[%emt 0:00:36]} 20. Bc5 {[%emt 0:00:30]} Qxc5 {[%emt 0:00:50]} 21. Qc3 {
[%emt 0:01:03]} Bg4 {[%emt 0:00:44]} 22. Re1 {[%emt 0:00:39]} Bxf3 {[%emt 0:00:
00]} 23. Qxf3 {[%emt 0:00:11]} Ng6 {[%emt 0:00:31]} 24. g3 {[%emt 0:00:54]}
Rfe8 {[%emt 0:00:14]} 25. h4 {[%emt 0:00:29]} Ne5 {[%emt 0:00:34]} 26. Qe4 {
[%emt 0:02:01]} Qe7 {[%emt 0:01:37]} 27. Kf1 {[%emt 0:01:49]} Qe6 {[%emt 0:00:
00]} 28. Qg2 {[%emt 0:00:49]} Qg4 {[%emt 0:00:24]} 29. Re3 {[%emt 0:01:08]} Nd7
{[%emt 0:01:56]} 30. Qxc6 {[%emt 0:01:00]} Qh3+ {[%emt 0:01:04]} 31. Kg1 {
[%emt 0:00:32]} Rec8 {[%emt 0:01:30]} 32. Qf3 {[%emt 0:01:13]} Nf6 {[%emt 0:00:
00]} 33. Rae1 {[%emt 0:02:17]} h6 {[%emt 0:02:58]} 34. Re7 {[%emt 0:05:00]} Qg4
{[%emt 0:02:06]} 35. Qb7 {[%emt 0:01:24]} Qg6 {[%emt 0:02:02]} 36. Kg2 {
[%emt 0:01:56]} Nh5 {[%emt 0:00:50]} 37. Qf3 {[%emt 0:01:29]} Rf8 {[%emt 0:00:
00]} 38. c5 {[%emt 0:00:48]} Rac8 {[%emt 0:00:46]} 39. b4 {[%emt 0:00:17]} Qc6
{[%emt 0:00:09]} 40. a4 {[%emt 0:02:09]} Qxf3+ {[%emt 0:01:02]} 41. Kxf3 {
[%emt 0:00:12]} Nf6 {[%emt 0:01:15]} 42. R1e5 {[%emt 0:32:17]} Rb8 {[%emt 0:00:
00]} 43. Ra7 {[%emt 0:00:29]} Rxb4 {[%emt 0:00:52]} 44. Rxa6 {[%emt 0:00:26]}
Rc8 {[%emt 0:00:59]} 45. Ra7 {[%emt 0:01:19]} Rc4 {[%emt 0:02:21]} 46. Ree7 {
[%emt 0:01:14]} Ng4 {[%emt 0:01:43]} 47. Kg2 {[%emt 0:03:28]} Rf8 {[%emt 0:00:
00]} 48. Kf3 {[%emt 0:02:11]} h5 {[%emt 0:00:11]} 49. Ra5 {[%emt 0:01:36]} Rc3+
{[%emt 0:00:19]} 50. Ke2 {[%emt 0:00:38]} Rc2+ {[%emt 0:00:09]} 51. Kd3 {
[%emt 0:00:29]} Rxf2 {[%emt 0:00:11]} 52. c6 {[%emt 0:00:12]} Rc8 {[%emt 0:00:
00]} 53. c7 {[%emt 0:00:34]} Rf1 {[%emt 0:00:42]} 54. Rd5 {[%emt 0:01:27]} Rd1+
{[%emt 0:00:39]} 55. Kc4 {[%emt 0:00:34]} Rc1+ {[%emt 0:00:14]} 56. Kb5 {
[%emt 0:00:44]} R1xc7 {[%emt 0:00:39]} 57. Rxc7 {[%emt 0:00:39]} Rxc7 {[%emt 0:
00:00]} 58. a5 {[%emt 0:00:09]} Nf6 {[%emt 0:01:23]} 59. Rd8+ {[%emt 0:00:19]}
Kh7 {[%emt 0:00:06]} 60. Kb6 {[%emt 0:01:00]} Rc3 {[%emt 0:01:37]} 61. Rd4 {
[%emt 0:01:44]} Rxg3 {[%emt 0:01:08]} 62. a6 {[%emt 0:00:32]} Ra3 {[%emt 0:00:
00]} 63. Kb5 {[%emt 0:01:05]} Ne8 {[%emt 0:01:08]} 64. Rd7 {[%emt 0:01:45]} Kg6
{[%emt 0:00:44]} 65. a7 {[%emt 0:00:29]} Nf6 {[%emt 0:01:38]} 66. Rc7 {[%emt 0:
00:00]} Kf5 {[%emt 0:01:03]} 67. Rxf7 {[%emt 0:00:55]} g6 {[%emt 0:00:37]} 68.
Rc7 {[%emt 0:02:56]} Ra1 {[%emt 0:01:16]} 69. Rc5+ {[%emt 0:01:20]} Ke6 {
[%emt 0:02:50]} 70. Rc6+ {[%emt 0:01:17]} Ke5 {[%emt 0:00:25]} 71. Ra6 {
[%emt 0:00:53]} Rb1+ {[%emt 0:00:40]} 72. Kc6 {[%emt 0:00:46]} Rc1+ {[%emt 0:
00:00]} 73. Kb7 {[%emt 0:00:23]} Rb1+ {[%emt 0:00:11]} 74. Kc8 {[%emt 0:00:32]}
Rc1+ {[%emt 0:00:56]} 75. Kd8 {[%emt 0:01:32]} Rd1+ {[%emt 0:00:25]} 76. Ke7 {
[%emt 0:00:38]} Rd7+ {[%emt 0:02:57]} 77. Kf8 {[%emt 0:00:41]} Rxa7 {[%emt 0:
00:00]} 78. Rxa7 {[%emt 0:00:27]} Ne4 {[%emt 0:00:31]} 79. Kg7 {[%emt 0:01:25]}
g5 {[%emt 0:00:39]} 80. Re7+ {[%emt 0:03:13]} Kf5 {[%emt 0:02:17]} 81. Rxe4 {
[%emt 0:04:16]} Kxe4 {[%emt 0:00:14]} 82. hxg5 {[%emt 0:00:47]} h4 {[%emt 0:00:
00]} 83. g6 {[%emt 0:00:44]} h3 {[%emt 0:00:06]} 84. Kf7 {[%emt 0:00:38]} h2 {
[%emt 0:00:07]} 85. g7 {[%emt 0:00:20]} h1=Q {[%emt 0:00:51]} 86. g8=Q {
[%emt 0:00:16]} Qf3+ {[%emt 0:00:15]} 1/2-1/2

[Event "44th Chess Olympiad Open 2022"]
[Site "Chennai"]
[Date "2022.07.31"]
[Round "3.89"]
[White "Karelina, Polina"]
[Black "Ihsan Mohamed N T"]
[Result "1-0"]
[WhiteElo "1835"]
[BlackElo "1208"]
[Annotator "NA RC"]
[PlyCount "80"]
[EventDate "2022.??.??"]
[TimeControl "60"]

1. e4 {[%emt 0:00:04]} d6 {[%emt 0:00:19]} 2. d4 {[%emt 0:00:09]} d5 {[%emt 0:
00:00]} 3. e5 {[%emt 0:00:52]} Bf5 {[%emt 0:00:16]} 4. Nf3 {[%emt 0:00:28]} Nc6
{[%emt 0:00:25]} 5. c3 {[%emt 0:02:44]} e6 {[%emt 0:00:23]} 6. Bd3 {[%emt 0:00:
00]} Nh6 {[%emt 0:02:04]} 7. Bxh6 {[%emt 0:04:40]} gxh6 {[%emt 0:00:42]} 8.
Bxf5 {[%emt 0:00:00]} exf5 {[%emt 0:00:23]} 9. Qd3 {[%emt 0:01:17]} Qd7 {
[%emt 0:02:16]} 10. Nbd2 {[%emt 0:01:33]} O-O-O {[%emt 0:00:54]} 11. g3 {
[%emt 0:00:47]} Na5 {[%emt 0:05:34]} 12. Nh4 {[%emt 0:00:54]} b5 {[%emt 0:00:
00]} 13. Qxf5 {[%emt 0:01:32]} Qxf5 {[%emt 0:00:35]} 14. Nxf5 {[%emt 0:00:03]}
h5 {[%emt 0:09:34]} 15. b3 {[%emt 0:02:16]} Rg8 {[%emt 0:05:41]} 16. Nf3 {
[%emt 0:03:47]} Re8 {[%emt 0:01:53]} 17. O-O {[%emt 0:01:29]} Rg4 {[%emt 0:00:
00]} 18. Rfe1 {[%emt 0:01:22]} Re6 {[%emt 0:02:06]} 19. h3 {[%emt 0:00:43]} Rg8
{[%emt 0:01:21]} 20. N3h4 {[%emt 0:00:51]} Rc6 {[%emt 0:03:52]} 21. Rac1 {
[%emt 0:03:04]} b4 {[%emt 0:07:59]} 22. cxb4 {[%emt 0:01:43]} Bxb4 {[%emt 0:00:
00]} 23. Rxc6 {[%emt 0:00:50]} Nxc6 {[%emt 0:00:25]} 24. Rc1 {[%emt 0:00:57]}
Na5 {[%emt 0:02:46]} 25. Ne3 {[%emt 0:01:41]} c6 {[%emt 0:04:21]} 26. Nxd5 {
[%emt 0:00:22]} Ba3 {[%emt 0:05:54]} 27. Rc2 {[%emt 0:00:34]} Kd7 {[%emt 0:00:
00]} 28. Nf6+ {[%emt 0:00:11]} Kc7 {[%emt 0:03:48]} 29. Nxg8 {[%emt 0:00:09]}
a6 {[%emt 0:02:25]} 30. d5 {[%emt 0:00:31]} Bf8 {[%emt 0:03:53]} 31. d6+ {
[%emt 0:00:24]} Kd7 {[%emt 0:04:15]} 32. Nf6+ {[%emt 0:00:42]} Ke6 {[%emt 0:00:
00]} 33. f4 {[%emt 0:00:14]} Bg7 {[%emt 0:04:29]} 34. Nxh5 {[%emt 0:01:13]}
Bxe5 {[%emt 0:02:05]} 35. fxe5 {[%emt 0:00:10]} Nb7 {[%emt 0:01:51]} 36. Rxc6 {
[%emt 0:00:25]} Kxe5 {[%emt 0:01:37]} 37. d7 {[%emt 0:00:40]} Kd5 {[%emt 0:00:
00]} 38. Rc8 {[%emt 0:00:13]} Kd6 {[%emt 0:00:52]} 39. d8=Q+ {[%emt 0:00:11]}
Nxd8 {[%emt 0:00:16]} 40. Rxd8+ {[%emt 0:00:00]} Kc7 {[%emt 0:00:00]} 1-0

[Event "44th Chess Olympiad Open 2022"]
[Site "Chennai"]
[Date "2022.07.31"]
[Round "3.91"]
[White "Dabuae, David"]
[Black "Stanley, Samson P."]
[Result "1-0"]
[WhiteElo "1707"]
[BlackElo "1877"]
[Annotator "NA RC"]
[PlyCount "25"]
[EventDate "2022.??.??"]
[TimeControl "60"]

1. e4 {[%emt 0:00:27]} e6 {[%emt 0:00:26]} 2. d4 {[%emt 0:00:05]} d5 {[%emt 0:
00:00]} 3. Nc3 {[%emt 0:00:00]} c5 {[%emt 0:00:17]} 4. Nf3 {[%emt 0:00:03]} Nc6
{[%emt 0:00:50]} 5. exd5 {[%emt 0:01:15]} exd5 {[%emt 0:01:06]} 6. Bb5 {
[%emt 0:00:01]} Bd7 {[%emt 0:01:11]} 7. O-O {[%emt 0:00:33]} Qe7 {[%emt 0:00:
00]} 8. Nxd5 {[%emt 0:00:17]} Qd6 {[%emt 0:01:36]} 9. c4 {[%emt 0:00:14]} O-O-O
{[%emt 0:01:21]} 10. Qa4 {[%emt 0:00:50]} a6 {[%emt 0:05:09]} 11. Bf4 {[%emt 0:
00:00]} Bg4 {[%emt 0:08:04]} 12. Bxd6 {[%emt 0:00:28]} a5 {[%emt 0:07:23]} 13.
Nb6# {[%emt 0:05:54]} 1-0

[Event "44th Chess Olympiad Open 2022"]
[Site "Chennai"]
[Date "2022.08.01"]
[Round "4.1"]
[White "Vidit, Santosh Gujrathi"]
[Black "Fressinet, Laurent"]
[Result "1/2-1/2"]
[WhiteElo "2714"]
[BlackElo "2631"]
[Annotator "TA"]
[PlyCount "61"]
[EventDate "2022.??.??"]
[TimeControl "60"]

{[%evp 13,61,15,29,27,38,38,31,33,35,27,32,33,43,43,47,47,47,43,50,43,43,43,43,
43,44,29,50,50,50,50,50,50,50,50,50,50,50,0,50,50,50,50,50,50,50,0,50,0,50,0]} 
1. d4 {[%emt 0:00:25]} d5 {[%emt 0:00:05]} 2. c4 {[%emt 0:00:06]} e6 {[%emt 0:
00:00]} 3. Nc3 {[%emt 0:00:08]} Nf6 {[%emt 0:00:11]} 4. cxd5 {[%emt 0:00:17]}
exd5 {[%emt 0:00:06]} 5. Bg5 {[%emt 0:00:06]} c6 {[%emt 0:00:14]} 6. e3 {
[%emt 0:00:07]} h6 {[%emt 0:00:05]} 7. Bh4 {[%emt 0:00:07]} Bf5 {[%emt 0:00:05]
} 8. Qf3 {[%emt 0:00:46] D35: Queen's Gambit Declined: Exchange Variation.} Bh7
{[%emt 0:00:12] 8...Be6 gains popularity.} 9. Bxf6 {[%emt 0:00:29]} Qxf6 {
[%emt 0:00:05]} 10. Qxf6 {[%emt 0:00:06]} gxf6 {[%emt 0:00:05]} 11. Kd2 {
[%emt 0:01:39][%cal Ye1d2,Yd2d3,Yd3e2]} Nd7 {[%emt 0:00:48][%cal Yb8d7,Yd7f6,
Yf6e4]} 12. Bd3 {[%emt 0:01:34]} Bxd3 {[%emt 0:00:52]} 13. Kxd3 {[%emt 0:00:02]
} Rg8 {[%emt 0:00:26]} 14. g3 {[%emt 0:00:15]} f5 {[%emt 0:00:00]} 15. Nf3 {
[%emt 0:05:00]} Nf6 {[%emt 0:00:23]} 16. Rhc1 {[%emt 0:04:49]} Ne4 {[%emt 0:02:
49]} 17. Ke2 {[%emt 0:00:11]} Be7 {[%emt 0:03:39] [#]} 18. Ne5 $146 {[%emt 0:
03:42]} ({Predecessor:} 18. Ne1 h5 19. h4 a5 20. Nd3 Bd6 21. Kf3 a4 22. Ne2 Kd7
23. Nef4 Rh8 24. Rc2 {1-0 (73) Bok,B (2616)-Andreikin,D (2729) Chess.com INT
2022}) 18... a5 {[%emt 0:05:01]} 19. Na4 {[%emt 0:01:14]} h5 {[%emt 0:10:11]}
20. h4 {[%emt 0:01:04]} Ra7 {[%emt 0:04:50]} 21. Nd3 {[%emt 0:00:00]} Bd6 {
[%emt 0:02:34]} 22. Rc2 {[%emt 0:03:25]} Ke7 {[%emt 0:02:42]} 23. Rb1 {[%emt 0:
12:25]} Rd8 {[%emt 0:14:14]} 24. Kd1 {[%emt 0:07:02]} Rg8 {[%emt 0:03:47]} 25.
Ke2 {[%emt 0:08:22]} Rd8 $1 {[%emt 0:00:59]} 26. Kf3 {[%emt 0:08:08]} Rh8 {
[%emt 0:06:35]} 27. Rbc1 {[%emt 0:01:29]} Rg8 {[%emt 0:00:00]} 28. Rg1 {
[%emt 0:02:14]} Rh8 {[%emt 0:06:08]} 29. Rgc1 {[%emt 0:02:32]} Rg8 {[%emt 0:00:
05]} 30. Rg1 {[%emt 0:02:23]} Rh8 $1 {[%emt 0:00:34]} 31. Rgc1 {[%emt 0:01:42]
Weighted Error Value: White=0.08 (flawless) /Black=0.03 (flawless)} ({White
should try} 31. Rd1 $14) 1/2-1/2

[Event "44th Chess Olympiad Open 2022"]
[Site "Chennai"]
[Date "2022.08.01"]
[Round "4.1"]
[White "Moussard, Jules"]
[Black "Harikrishna, Pentala"]
[Result "1/2-1/2"]
[WhiteElo "2672"]
[BlackElo "2720"]
[Annotator "TA"]
[PlyCount "104"]
[EventDate "2022.??.??"]
[TimeControl "60"]

{[%evp 20,104,29,-19,18,15,28,12,12,12,18,20,12,12,8,8,8,8,8,8,8,8,8,8,8,8,8,8,
10,10,10,10,10,10,10,0,0,0,10,3,3,3,10,2,10,0,0,0,0,0,0,0,0,0,0,0,0,0,0,0,0,0,
0,0,0,0,0,0,0,0,0,0,0,0,0,0,0,0,0,0,0,0,0,0,0,0,0]} 1. e4 {[%emt 0:00:03]} e5 {
[%emt 0:00:06]} 2. Nf3 {[%emt 0:00:07]} Nc6 {[%emt 0:00:04]} 3. Bb5 {[%emt 0:
00:00]} a6 {[%emt 0:00:05]} 4. Ba4 {[%emt 0:00:05]} Nf6 {[%emt 0:00:09]} 5. O-O
{[%emt 0:00:12]} Be7 {[%emt 0:00:05]} 6. Re1 {[%emt 0:00:22]} b5 {[%emt 0:00:
00]} 7. Bb3 {[%emt 0:00:03]} O-O {[%emt 0:00:19]} 8. a4 {[%emt 0:00:44]} b4 {
[%emt 0:00:21]} 9. a5 {[%emt 0:00:34]} d6 {[%emt 0:03:56]} 10. c3 {[%emt 0:00:
00]} Rb8 {[%emt 0:04:10]} 11. Bc4 {[%emt 0:00:50]} (11. h3 $142) 11... Bg4 {
[%emt 0:04:05] C90: Closed Ruy Lopez with 7...d6: Early deviations.} (11...
Nxe4 {is interesting.} 12. Bd5 Nxf2 13. Kxf2 Nxa5 14. cxb4 c6) 12. h3 {[%emt 0:
00:00]} Bh5 {[%emt 0:00:14][%cal Yf6e4] [#]} 13. Bxa6 $146 {[%emt 0:01:47]} ({
Predecessor:} 13. d3 bxc3 14. bxc3 Nxa5 15. Rxa5 Rxb1 16. g4 Bg6 17. Qc2 Rb8
18. Rxa6 Qc8 19. Kh2 {1-0 (41) Caruana,F (2806)-So,W (2772) Saint Louis 2021})
13... d5 {[%emt 0:00:14] The position is equal.} 14. exd5 {[%emt 0:00:08]} Qxd5
{[%emt 0:00:04] [#] aiming for ...e4.} 15. d3 {[%emt 0:00:18] Black must now
prevent Bc4.} Bxf3 {[%emt 0:00:06]} 16. Qxf3 {[%emt 0:00:04]} Qxf3 {[%emt 0:00:
00]} 17. gxf3 {[%emt 0:00:03]} bxc3 {[%emt 0:02:39]} 18. bxc3 {[%emt 0:00:05]}
Ra8 {[%emt 0:08:43]} 19. Bb7 {[%emt 0:00:52][%csl Ya8,Yc6] A strong pair of
Bishops.} Rxa5 {[%emt 0:00:06]} 20. Rxa5 {[%emt 0:00:05]} Nxa5 {[%emt 0:00:05]
[%cal Yc6a5,Ya5b7,Yb7c5,Yc5d3]} 21. Rxe5 {[%emt 0:00:14]} Nxb7 {[%emt 0:00:07]}
22. Rxe7 {[%emt 0:00:05]} Nc5 {[%emt 0:00:15]} 23. Rxc7 {[%emt 0:00:15]} Nxd3 {
[%emt 0:00:07]} 24. Be3 {[%emt 0:00:10]} Nd5 {[%emt 0:00:00]} 25. Rd7 {[%emt 0:
00:15]} Nxe3 {[%emt 0:01:02]} 26. Rxd3 $11 {[%emt 0:00:00] Endgame KRN-KRN} Nc4
{[%emt 0:00:27]} 27. Nd2 {[%emt 0:00:10]} Nxd2 {[%emt 0:05:28]} 28. Rxd2 {
[%emt 0:00:08] KR-KR} Ra8 {[%emt 0:04:30]} 29. c4 {[%emt 0:03:46]} Kf8 {
[%emt 0:00:58]} 30. Kg2 {[%emt 0:03:20]} Ke7 {[%emt 0:00:00]} 31. Kg3 {[%emt 0:
02:26]} Ra3 {[%emt 0:00:23]} 32. Rd4 {[%emt 0:02:15]} Rc3 {[%emt 0:02:23]} 33.
h4 {[%emt 0:00:44]} h5 {[%emt 0:03:19]} 34. Re4+ {[%emt 0:04:48]} Kd6 {[%emt 0:
04:58]} 35. Kf4 {[%emt 0:06:50]} g6 {[%emt 0:00:00]} 36. Kg3 {[%emt 0:00:23]}
Kd7 {[%emt 0:03:33]} 37. Kg2 {[%emt 0:01:34]} Kd6 {[%emt 0:00:51]} 38. f4 {
[%emt 0:03:32]} (38. Rf4 $5 {[%cal Rf4f7]}) 38... f5 {[%emt 0:07:38]} 39. Rd4+
{[%emt 0:01:44]} Kc5 {[%emt 0:03:48]} 40. Rd5+ {[%emt 0:00:34]} Kc6 $1 {
[%emt 0:00:10]} 41. Rd8 {[%emt 0:32:38]} Rxc4 {[%emt 0:00:00]} 42. Rg8 {
[%emt 0:00:03]} Rxf4 {[%emt 0:00:10]} 43. Rxg6+ {[%emt 0:00:00]} Kd5 {[%emt 0:
00:22]} 44. Kg3 {[%emt 0:00:16]} Ra4 {[%emt 0:00:17]} 45. Rg5 {[%emt 0:00:30]
[%csl Yf5,Yh5]} Ke5 {[%emt 0:00:38]} 46. Rxh5 {[%emt 0:01:32]} Rg4+ {[%emt 0:
00:43]} 47. Kf3 {[%emt 0:00:05]} Kf6 {[%emt 0:00:18]} 48. Rh6+ {[%emt 0:01:07]}
Kg7 {[%emt 0:00:12]} 49. Rh5 {[%emt 0:00:15]} Kg6 {[%emt 0:00:00] Inhibits
Rg5+.} 50. Rh8 {[%emt 0:00:04] [#] Threatening mate with Rg8+.} Kg7 {[%emt 0:
00:06] Against Rg8+} 51. Rh5 {[%emt 0:00:03] White threatens Rg5+ and mate.}
Kg6 {[%emt 0:00:05] Inhibits Rg5+.} 52. Rh8 {[%emt 0:00:04] Intending Rg8+ and
mate.} Kg7 {[%emt 0:00:04] Against Rg8+. An even fight not without its
subleties. Weighted Error Value: White=0.03 (flawless) /Black=0.01 (flawless)}
1/2-1/2

[Event "44th Chess Olympiad Open 2022"]
[Site "Chennai"]
[Date "2022.08.01"]
[Round "4.1"]
[White "Narayanan.S.L"]
[Black "Lagarde, Maxime"]
[Result "1/2-1/2"]
[WhiteElo "2659"]
[BlackElo "2631"]
[Annotator "TA"]
[PlyCount "101"]
[EventDate "2022.??.??"]
[TimeControl "60"]

{[%evp 9,101,0,0,0,0,0,0,0,0,0,0,0,4,0,8,0,20,4,23,-41,-37,-35,0,0,0,0,0,0,0,0,
0,0,0,0,0,0,0,0,0,0,0,0,0,0,0,0,0,0,0,0,8,3,8,11,8,10,40,34,39,30,79,75,87,51,
52,52,50,60,52,37,167,45,43,8,8,8,8,8,8,8,8,8,8,31,8,8,8,8,8,8,8,46,46,39]} 1.
d4 {[%emt 0:00:04]} f5 {[%emt 0:00:08]} 2. Bg5 {[%emt 0:00:24]} g6 {[%emt 0:00:
00]} 3. Nc3 {[%emt 0:00:06]} Bg7 {[%emt 0:00:07]} 4. f3 {[%emt 0:00:09]} Nc6 {
[%emt 0:00:24]} 5. d5 {[%emt 0:10:50]} Ne5 {[%emt 0:01:51]} 6. e4 {[%emt 0:00:
00] A80: Dutch Defence: Unusual White second moves.} fxe4 {[%emt 0:04:33]} 7.
fxe4 {[%emt 0:00:17]} Nh6 {[%emt 0:04:55][%cal Yg8h6,Yh6f7,Yf7e5,Ye5f3]} 8. Nf3
{[%emt 0:03:11] Hoping for Nxe5. The position is equal.} Nhf7 {[%emt 0:00:55] 
[#] ...Nxf3+ is the strong threat.} 9. Bf4 $146 {[%emt 0:06:52]} ({Predecessor:
} 9. Be3 O-O 10. Be2 e6 11. O-O d6 12. Nd4 exd5 13. exd5 Qe7 14. Qd2 c5 15.
dxc6 bxc6 {0-1 (40) Csiszar,C (2429)-Kovachev,D (2208) Ohrid 2009}) 9... O-O {
[%emt 0:10:24][%cal Yb7b5]} 10. Qd2 {[%emt 0:07:49]} c6 {[%emt 0:00:00]} 11.
O-O-O {[%emt 0:00:54]} Qa5 {[%emt 0:08:11]} 12. Kb1 {[%emt 0:06:48]} Nxf3 {
[%emt 0:04:12]} 13. gxf3 {[%emt 0:01:34]} Ne5 {[%emt 0:00:11]} 14. h4 {[%emt 0:
23:35]} ({Better is} 14. Bxe5 $11 Bxe5 15. Bg2) 14... Nxf3 $15 {[%emt 0:08:51]}
15. Qe3 {[%emt 0:00:07]} Bxc3 {[%emt 0:04:51]} (15... Qb6 $5 {[%cal Rf8f4]} 16.
Qxf3 Be5 $15) 16. bxc3 {[%emt 0:00:08]} Qb6+ {[%emt 0:00:41]} 17. Qxb6 {
[%emt 0:00:09]} axb6 {[%emt 0:00:03]} 18. Bh6 {[%emt 0:00:10]} Rf6 {[%emt 0:02:
02]} 19. d6 $1 {[%emt 0:05:22]} exd6 {[%emt 0:07:03]} (19... Rxd6 $2 20. Bc4+
Kh8 21. Rxd6 exd6 22. Rf1 Nd2+ 23. Bxd2 $18) 20. Bc4+ {[%emt 0:01:05]} d5 $1 {
[%emt 0:00:08]} 21. exd5 {[%emt 0:00:56] aiming for d6+.} b5 {[%emt 0:00:00]}
22. Be2 {[%emt 0:12:46] Strongly threatening Rdf1.} ({But not} 22. dxc6+ bxc4
23. cxd7 Bxd7 $1 24. Rxd7 Rb6+ 25. Ka1 Rba6 $17) 22... Ne5 $1 {[%emt 0:02:16]}
23. Rhe1 {[%emt 0:00:57]} d6 {[%emt 0:04:55]} 24. Bg5 {[%emt 0:00:00] A strong
pair of Bishops.} Rf2 {[%emt 0:00:41]} 25. dxc6 {[%emt 0:00:22]} bxc6 {[%emt 0:
00:32]} 26. Rxd6 {[%emt 0:01:18]} Bf5 {[%emt 0:06:39]} 27. Rd2 {[%emt 0:03:30]
[%cal Ye2c4]} Nf3 {[%emt 0:09:16]} 28. Bxf3 {[%emt 0:00:32]} Rxf3 {[%emt 0:00:
04]} 29. Kb2 {[%emt 0:00:55]} Bh3 {[%emt 0:04:37]} 30. Rd6 {[%emt 0:01:50]} Rf2
{[%emt 0:05:39]} 31. Rxc6 {[%emt 0:00:50]} Bf5 {[%emt 0:00:00]} 32. Rc1 {
[%emt 0:00:13]} Bd3 {[%emt 0:00:22]} 33. Be3 {[%emt 0:03:45]} Re2 {[%emt 0:01:
39]} 34. Bd4 {[%emt 0:00:24]} Bc4 {[%emt 0:01:33] [#]} (34... Rf8 $11 {should
be considered.}) 35. a3 $1 $16 {[%emt 0:00:12]} Re4 {[%emt 0:01:37]} 36. Rc7 {
[%emt 0:01:18] And now Rg7+ would win.} Rxh4 {[%emt 0:00:48]} 37. Re1 {[%emt 0:
00:28] Threatens to win with Ree7.} Bf7 $1 {[%emt 0:00:31]} 38. Rf1 {[%emt 0:
00:21] Prevents Rf4.} Rf8 {[%emt 0:00:12]} 39. Be5 {[%emt 0:04:27] Black must
now prevent Bd6.} Rc4 {[%emt 0:00:16] [#]} (39... Rh5 $14 40. Bd4 Rf5 41. Rxf5
gxf5) 40. Rb7 {[%emt 0:02:11]} (40. Rd7 $1 $18) 40... Rc6 {[%emt 0:00:47]
Prevents Bd6.} 41. c4 {[%emt 0:11:35]} Rxc4 {[%emt 0:00:59]} 42. Bd6 {[%emt 0:
01:19]} Rd8 {[%emt 0:00:42]} 43. Rfxf7 {[%emt 0:01:55]} Rxd6 $11 {[%emt 0:00:
07] Endgame KRR-KRR} 44. Rg7+ {[%emt 0:00:06]} Kh8 {[%emt 0:01:57]} 45. Rxh7+ {
[%emt 0:00:05]} Kg8 {[%emt 0:00:01]} 46. Rbg7+ {[%emt 0:00:44]} Kf8 {[%emt 0:
00:07]} 47. Ra7 {[%emt 0:00:06][%cal Rh7h8]} Kg8 {[%emt 0:00:08] Prevents Rh8+.
} 48. Rhb7 {[%emt 0:03:01] Ra8+ would kill now.} Rdc6 {[%emt 0:01:09]} 49. Ra8+
{[%emt 0:00:46]} Rc8 {[%emt 0:00:05]} 50. Rxc8+ {[%emt 0:00:50]} Rxc8 {[%emt 0:
00:04]} 51. Rxb5 {[%emt 0:03:07] Weighted Error Value: White=0.10 (very
precise) /Black=0.10 (very precise)} 1/2-1/2